bitfinex/quotes_ETHUSD_20251011
["timestamp","ask_amount","ask_price","bid_price","bid_amount"]
[1760208337235,3.78875785,3829.0,3828.9,1.322]
[1760208338222,1.17710991,3829.0,3828.9,1.322]
[1760208339334,3.78875785,3829.0,3828.9,1.322]
[1760208339722,3.81486016,3829.0,3828.9,1.322]
[1760208340035,3.81486016,3829.0,3828.9,0.002]
[1760208340538,1.20321222,3829.0,3828.9,0.002]
[1760208340704,0.61900231,3829.0,3828.9,0.002]
[1760208340902,0.1304,3829.0,3828.9,0.002]
[1760208341203,1.0915,3829.6,3829.1,2.6115136]
[1760208341204,0.653,3829.6,3829.1,2.6115136]
[1760208341509,0.653,3829.6,3829.2,2.61149051]
[1760208341714,0.653,3829.6,3829.5,2.61130695]
[1760208342113,0.653,3829.6,3829.3,2.76788994]
[1760208342320,0.653,3829.6,3829.3,3.30693945]
[1760208342546,0.653,3829.6,3829.3,0.69556394]
[1760208342705,0.653,3829.6,3829.4,2.61137061]
[1760208342907,0.653,3829.6,3829.3,0.1304]
[1760208343139,0.4385,3829.5,3828.9,0.002]
[1760208343354,0.46460231,3829.5,3828.9,0.002]
[1760208343844,0.46460231,3829.5,3828.9,2.61371033]
[1760208344816,0.653,3829.6,3828.9,2.61371033]
[1760208344817,0.653,3829.6,3829.0,0.02611647]
[1760208345153,0.653,3829.6,3829.3,2.61144254]
[1760208345651,0.653,3829.6,3829.2,2.61149329]
[1760208346348,0.653,3829.6,3829.3,2.61144334]
[1760208347247,0.653,3829.6,3829.2,2.61150394]
[1760208347453,0.653,3829.6,3829.0,2.61164794]
[1760208347617,0.46460231,3829.5,3828.9,0.002]
[1760208347935,3.07593128,3829.5,3828.9,0.002]
[1760208348718,1.09861298,3829.5,3828.9,0.002]
[1760208348940,0.46460231,3829.5,3828.9,0.002]
[1760208349144,2.61137515,3829.4,3828.9,0.002]
[1760208349333,2.61155983,3829.2,3828.9,0.002]
[1760208349534,0.02610231,3829.1,3828.9,0.002]
[1760208349730,0.46460231,3829.1,3828.9,0.002]
[1760208349925,0.4385,3829.0,3828.9,0.002]
[1760208350145,0.02610231,3829.1,3828.9,0.002]
[1760208350453,2.61137978,3829.4,3828.9,0.002]
[1760208350623,0.02610231,3829.3,3828.9,0.002]
[1760208351029,0.46460231,3829.3,3828.9,0.002]
[1760208351755,0.02610231,3829.3,3828.9,0.002]
[1760208351951,0.4385,3829.2,3828.9,0.002]
[1760208352156,0.02610231,3829.5,3829.0,2.61158708]
[1760208355654,0.02610231,3829.5,3828.9,0.39397988]
[1760208355655,0.46460231,3829.5,3828.9,0.39397988]
[1760208355965,0.46460231,3829.5,3828.9,0.1324]
[1760208356132,0.46460231,3829.5,3828.9,2.74410983]
[1760208356456,0.46460231,3829.5,3829.0,2.61163519]
[1760208356658,0.46460231,3829.5,3828.9,2.74410271]
[1760208357259,0.46460231,3829.5,3828.9,0.1324]
[1760208357463,0.85051445,3829.5,3828.9,0.1324]
[1760208357761,0.46460231,3829.5,3828.9,0.1324]
[1760208358059,3.07691161,3829.5,3828.9,0.1324]
[1760208358464,3.07691161,3829.5,3828.9,0.002]
[1760208358465,2.6115745,3829.2,3828.9,0.002]
[1760208358636,2.6376834,3829.1,3828.9,0.002]
[1760208358833,0.46460231,3829.1,3828.9,0.002]
[1760208359034,0.4385,3829.0,3828.9,0.002]
[1760208359731,0.4385,3829.0,3828.9,0.006271]
[1760208360766,1.0915,3829.0,3828.9,0.006271]
[1760208361583,4.10216329,3829.0,3828.9,0.006271]
[1760208362841,4.73576329,3829.0,3828.9,0.006271]
[1760208363059,4.70966098,3829.0,3828.9,0.006271]
[1760208364170,6.62966098,3829.0,3828.9,0.006271]
[1760208367375,26.6487951,3829.0,3828.9,0.006271]
[1760208368452,2.6119208,3828.6,3828.5,0.002]
[1760208368766,3.2455208,3828.6,3828.5,0.002]
[1760208368967,3.70942311,3828.6,3828.5,0.002]
[1760208374892,0.46390231,3828.6,3828.5,0.002]
[1760208375192,0.4378,3828.6,3828.5,0.002]
[1760208375790,0.46390231,3828.6,3828.5,0.002]
[1760208375958,3.64457108,3828.6,3828.5,0.002]
[1760208376859,4.27817108,3828.6,3828.5,0.002]
[1760208390842,4.19181519,3828.6,3828.5,0.002]
[1760208391538,4.84481519,3828.6,3828.5,0.002]
[1760208391842,4.81871288,3828.6,3828.5,0.002]
[1760208395032,6.73871288,3828.6,3828.5,0.002]
[1760208397319,5.16579372,3828.2,3828.1,0.002]
[1760208397949,5.62969372,3828.2,3828.1,0.002]
[1760208398818,3.24606669,3827.8,3827.7,0.002]
[1760208399037,5.192169,3827.8,3827.7,0.002]
[1760208399328,5.62996669,3827.8,3827.7,0.002]
[1760208399576,6.47638638,3827.8,3827.7,0.002]
[1760208401537,14.23017547,3827.8,3827.7,0.002]
[1760208407339,5.84278638,3827.8,3827.7,0.002]
[1760208407546,4.99636669,3827.8,3827.7,0.002]
[1760208408449,5.65036669,3827.8,3827.7,0.002]
[1760208411574,2.61273971,3827.4,3826.9,0.002]
[1760208411775,12.2865288,3827.4,3826.9,0.002]
[1760208412081,14.2462165,3827.4,3826.9,0.002]
[1760208412426,14.8798165,3827.4,3826.9,0.002]
[1760208412633,2.6130128,3827.0,3826.9,0.002]
[1760208412863,10.3929042,3827.0,3826.9,0.002]
[1760208413074,10.82780189,3827.0,3826.9,0.002]
[1760208413233,11.39654986,3827.0,3826.9,0.002]
[1760208414041,3.24695424,3826.5,3824.4,2.3377067]
[1760208414255,3.24695424,3826.5,3824.3,2.61483527]
[1760208414256,7.75378909,3825.9,3825.1,0.0016]
[1760208414596,2.63999827,3825.8,3824.8,2.61450435]
[1760208414743,2.61398343,3825.6,3824.9,0.0016]
[1760208414937,0.02610231,3825.5,3824.8,0.0016]
[1760208415171,0.02610231,3825.5,3824.2,0.0974]
[1760208415172,0.48710231,3825.5,3824.5,0.0016]
[1760208415372,0.461,3826.1,3825.5,2.61403738]
[1760208415539,0.461,3826.1,3824.8,10.36830388]
[1760208415540,0.461,3826.1,3825.6,2.61396242]
[1760208415863,0.461,3826.1,3825.1,0.0974]
[1760208415864,0.02610231,3826.0,3825.5,2.61401857]
[1760208416236,0.461,3825.9,3825.6,2.61396688]
[1760208416441,0.461,3825.8,3825.3,2.6141189]
[1760208416671,0.461,3825.7,3825.3,2.61415299]
[1760208416871,0.461,3825.6,3825.1,2.61426582]
[1760208417071,2.63979324,3826.1,3825.0,2.61434647]
[1760208417072,0.461,3825.5,3825.0,2.61434647]
[1760208417383,0.461,3825.4,3825.1,2.61429932]
[1760208417581,0.654,3825.3,3825.1,2.61429932]
[1760208417788,0.654,3825.3,3824.4,2.6147891]
[1760208417789,0.654,3825.3,3824.2,0.0974]
[1760208417954,0.48710231,3825.2,3824.4,0.0016]
[1760208418141,0.48710231,3825.2,3824.9,2.61439414]
[1760208418375,0.461,3825.1,3824.9,2.61439414]
[1760208418575,0.461,3825.1,3824.2,0.1948]
[1760208418789,0.461,3825.1,3824.9,2.61444174]
[1760208419196,0.654,3825.3,3825.0,2.61436345]
[1760208419482,0.654,3825.3,3824.3,0.47298541]
[1760208419483,0.654,3825.3,3825.1,2.61431073]
[1760208419883,0.654,3825.3,3825.2,2.61424239]
[1760208420295,0.654,3825.3,3825.1,2.61429971]
[1760208420586,0.654,3825.3,3825.2,2.61424239]
[1760208421117,0.654,3825.3,3824.6,0.0974]
[1760208421322,0.654,3825.3,3824.9,2.61440994]
[1760208421529,0.654,3825.3,3824.9,2.61442808]
[1760208421825,0.654,3825.3,3824.4,2.0174]
[1760208422151,0.654,3825.3,3825.0,2.61431278]
[1760208422324,0.654,3825.3,3824.9,2.61440855]
[1760208422487,1.1244,3825.3,3824.9,2.61440855]
[1760208422907,1.1244,3825.3,3825.0,2.61437318]
[1760208423732,0.654,3825.3,3825.0,2.61437318]
[1760208423921,1.1244,3825.3,3825.0,2.61437318]
[1760208424088,0.4704,3825.2,3824.8,0.1304]
[1760208424535,0.49650231,3825.1,3824.8,0.1304]
[1760208424922,0.4704,3825.0,3824.8,0.1304]
[1760208425946,0.49650231,3824.9,3824.2,2.61492095]
[1760208426146,0.4704,3824.8,3824.2,2.61492095]
[1760208426306,0.02610231,3824.7,3824.2,2.61492095]
[1760208426844,0.4704,3824.6,3824.1,2.61492827]
[1760208427050,0.4704,3824.5,3824.0,2.61504642]
[1760208427234,0.4704,3824.5,3823.8,2.61514481]
[1760208427235,0.4704,3824.5,3824.1,2.61498636]
[1760208427403,0.4704,3824.5,3823.6,0.0974]
[1760208427741,0.4704,3824.5,3824.2,2.61487542]
[1760208428160,0.4704,3824.5,3823.5,2.6153914]
[1760208428161,0.4704,3824.4,3822.9,0.93287815]
[1760208428446,0.4704,3824.4,3822.4,0.53181976]
[1760208428447,0.4704,3824.9,3824.3,2.61483895]
[1760208428608,0.02610231,3824.8,3824.2,2.61491073]
[1760208429009,0.4704,3824.7,3824.2,2.61491073]
[1760208429205,0.49650231,3824.6,3823.2,0.0974]
[1760208429407,0.49650231,3824.6,3822.7,0.0974]
[1760208429408,0.49650231,3824.6,3823.5,2.61540007]
[1760208429612,2.61480925,3824.4,3823.5,2.61540007]
[1760208429915,0.76059347,3824.3,3823.5,2.61540007]
[1760208430116,0.4704,3824.2,3823.6,2.61533313]
[1760208430318,0.02610231,3824.1,3823.6,2.61533313]
[1760208430807,0.4704,3824.0,3823.3,2.61553443]
[1760208431007,0.2143,3823.7,3823.5,0.002]
[1760208431427,0.4704,3823.6,3823.5,0.002]
[1760208432636,0.49650231,3823.6,3823.5,0.002]
[1760208432837,1.09063064,3823.6,3823.5,0.002]
[1760208433534,0.49650231,3823.6,3823.5,0.002]
[1760208441749,0.1304,3823.8,3823.5,2.61733989]
[1760208441948,0.02610231,3823.7,3823.5,0.002]
[1760208442261,0.02610231,3823.7,3823.5,2.61739549]
[1760208442863,0.6008,3823.8,3823.5,2.61739549]
[1760208443970,0.1304,3823.8,3823.6,2.61531196]
[1760208444121,0.1304,3823.8,3823.5,2.61739996]
[1760208444681,0.1304,3823.8,3823.5,0.002]
[1760208444827,0.4704,3823.7,3823.5,0.002]
[1760208445967,0.71080231,3823.6,3823.5,0.002]
[1760208446172,1.05644371,3823.6,3823.5,0.002]
[1760208447121,0.71080231,3823.6,3823.5,0.002]
[1760208450979,10.03839579,3823.6,3823.5,0.002]
[1760208451156,10.01229348,3823.6,3823.5,0.002]
[1760208452370,3.30003633,3823.6,3823.5,0.002]
[1760208452676,3.32613864,3823.6,3823.5,0.002]
[1760208452862,4.26128963,3823.6,3823.5,0.002]
[1760208457815,1.6459533,3823.6,3823.5,0.002]
[1760208458015,4.26128963,3823.6,3823.5,0.002]
[1760208458319,1.6459533,3823.6,3823.5,0.002]
[1760208458470,0.02610231,3823.7,3823.5,0.002]
[1760208458869,0.47570231,3823.7,3823.5,0.002]
[1760208459702,0.654,3823.6,3823.5,0.002]
[1760208461577,1.1287,3823.6,3823.5,0.002]
[1760208462973,0.654,3823.6,3823.5,0.002]
[1760208466426,0.654,3823.6,3823.5,2.61740473]
[1760208467189,0.654,3823.6,3823.5,0.002]
[1760208467900,0.654,3823.6,3823.5,2.61740473]
[1760208468792,0.654,3823.6,3823.5,0.002]
[1760208469831,0.654,3823.6,3823.5,2.61740473]
[1760208470295,0.654,3823.6,3823.5,2.74095877]
[1760208470494,0.654,3823.6,3823.5,2.64355877]
[1760208471200,0.654,3823.6,3823.5,0.002]
[1760208471607,1.1287,3823.6,3823.5,0.002]
[1760208472127,0.654,3823.6,3823.5,0.002]
[1760208473709,1.1287,3823.6,3823.5,0.002]
[1760208475406,1.54079788,3823.6,3823.5,0.002]
[1760208475626,4.15613421,3823.6,3823.5,0.002]
[1760208475818,4.28653421,3823.6,3823.5,0.002]
[1760208477725,1.67119788,3823.6,3823.5,0.002]
[1760208477930,1.2591,3823.6,3823.5,0.002]
[1760208478311,0.7844,3823.6,3823.5,0.002]
[1760208479399,1.2278,3823.6,3823.5,0.002]
[1760208481939,1.25390231,3823.6,3823.5,0.002]
[1760208482739,3.86923864,3823.6,3823.5,0.002]
[1760208482939,5.21095164,3823.6,3823.5,0.002]
[1760208483116,5.18484933,3823.6,3823.5,0.002]
[1760208483523,11.76670648,3823.6,3823.5,0.002]
[1760208497158,11.76670648,3823.6,3823.1,0.002]
[1760208497342,9.32786711,3823.2,3823.1,0.002]
[1760208497539,10.4199928,3823.2,3823.1,0.002]
[1760208497771,10.8633928,3823.2,3823.1,0.002]
[1760208505257,0.4434,3823.2,3823.1,0.002]
[1760208505461,3.08511227,3823.2,3823.1,0.002]
[1760208505661,3.73911227,3823.2,3823.1,0.002]
[1760208506148,0.68010231,3823.2,3823.1,0.002]
[1760208506960,0.7844,3823.2,3823.1,0.002]
[1760208507582,1.2278,3823.2,3823.1,0.002]
[1760208508477,0.7844,3823.2,3823.1,0.002]
[1760208509478,1.2416,3823.2,3823.1,0.002]
[1760208510571,1.26770231,3823.2,3823.1,0.002]
[1760208511287,0.81050231,3823.2,3823.1,0.002]
[1760208511457,0.7844,3823.2,3823.1,0.002]
[1760208511870,1.2416,3823.2,3823.1,0.002]
[1760208515368,0.654,3823.2,3823.1,2.61767837]
[1760208515671,0.654,3823.2,3823.1,3.16980013]
[1760208516485,0.654,3823.2,3823.1,3.24104335]
[1760208517764,0.654,3823.2,3823.1,5.16104335]
[1760208519978,0.001,3823.5,3823.3,2.61552458]
[1760208520171,0.001,3823.5,3823.4,0.02615473]
[1760208521109,0.001,3823.5,3823.4,2.64162786]
[1760208522576,0.001,3823.5,3823.4,2.61547313]
[1760208523210,0.001,3823.5,3823.3,2.74592062]
[1760208524131,0.001,3823.5,3823.4,2.61547313]
[1760208525110,0.001,3823.5,3823.3,2.74592166]
[1760208525321,0.001,3823.5,3823.4,2.61547313]
[1760208525523,0.001,3823.5,3823.4,2.71287313]
[1760208525825,0.001,3823.5,3823.4,2.61547313]
[1760208526627,0.001,3823.5,3823.3,0.1304]
[1760208527363,0.001,3823.5,3823.3,2.74592322]
[1760208528134,0.001,3823.5,3823.4,2.61547313]
[1760208528629,0.001,3823.5,3823.4,2.71287313]
[1760208529332,0.001,3823.5,3823.4,5.95287313]
[1760208530334,0.001,3823.5,3823.4,4.63287313]
[1760208530501,0.001,3823.5,3823.4,4.65902786]
[1760208530704,0.001,3823.5,3823.4,5.74102342]
[1760208530925,0.001,3823.5,3823.4,5.61746869]
[1760208531628,0.001,3823.5,3823.4,5.71486869]
[1760208532238,0.001,3823.5,3823.4,6.34846869]
[1760208532430,0.001,3823.5,3823.4,7.79886869]
[1760208532822,0.001,3823.5,3823.4,8.45286869]
[1760208535131,0.654,3823.6,3823.5,6.48800473]
[1760208535335,0.654,3823.6,3823.5,9.17322902]
[1760208537442,0.001,3823.9,3823.5,9.17322902]
[1760208537443,0.655,3823.9,3823.8,5.16879953]
[1760208537642,0.655,3823.9,3823.8,21.41536992]
[1760208537848,1e-08,3823.9,3823.8,21.64316992]
[1760208538153,1e-08,3823.9,3823.8,21.90516992]
[1760208538354,1e-08,3823.9,3823.8,26.83656522]
[1760208538765,1e-08,3824.3,3824.2,3.24852599]
[1760208539057,1e-08,3824.3,3824.2,12.93609638]
[1760208539253,1e-08,3824.3,3824.2,13.03349638]
[1760208539452,1e-08,3824.3,3824.2,13.81789638]
[1760208539656,1e-08,3824.3,3824.2,14.90467852]
[1760208540755,1e-08,3824.3,3824.2,14.77427852]
[1760208540961,1e-08,3824.3,3824.2,17.24814408]
[1760208541662,1e-08,3824.3,3824.2,14.90467852]
[1760208544233,1e-08,3824.3,3824.2,23.38367852]
[1760208544429,0.654,3824.8,3824.7,4.56718414]
[1760208544653,0.654,3824.8,3824.7,22.26334032]
[1760208544960,0.654,3824.8,3824.7,22.36074032]
[1760208545165,0.654,3824.8,3824.7,23.14690281]
[1760208549840,0.15650231,3826.6,3826.0,2.61363489]
[1760208550042,0.654,3826.5,3826.1,3.93262502]
[1760208550272,0.654,3826.5,3826.2,0.0974]
[1760208551149,0.654,3826.5,3826.1,1.34513626]
[1760208551350,0.654,3826.5,3826.2,0.0974]
[1760208551872,0.654,3826.5,3826.1,1.34513626]
[1760208552376,0.654,3826.5,3826.1,1.44253626]
[1760208552574,0.654,3826.5,3826.1,1.41639999]
[1760208552872,0.654,3826.5,3826.1,1.31899999]
[1760208553177,0.654,3826.5,3826.2,1.31899999]
[1760208556891,0.654,3826.5,3826.2,1.30431152]
[1760208558960,0.654,3826.5,3826.3,1.29431152]
[1760208559390,0.65257598,3826.5,3826.3,1.29431152]
[1760208560502,0.65257598,3826.5,3826.1,0.02613627]
[1760208560659,0.65257598,3826.5,3826.4,2.61342253]
[1760208560864,0.65257598,3826.5,3826.4,2.71082253]
[1760208561279,0.65257598,3826.5,3826.3,0.1304]
[1760208561678,0.65257598,3826.5,3826.3,2.74386304]
[1760208561900,0.65257598,3826.5,3826.4,2.61342253]
[1760208562405,0.65257598,3826.5,3826.3,2.8412795]
[1760208562599,0.65257598,3826.5,3826.4,2.61342253]
[1760208563176,0.65257598,3826.5,3826.4,3.16152063]
[1760208563373,0.65257598,3826.5,3826.4,3.38932063]
[1760208564390,0.65257598,3826.5,3826.4,5.30932063]
[1760208564583,0.65257598,3826.5,3826.4,5.94292063]
[1760208565900,0.65257598,3826.5,3826.4,5.30932063]
[1760208569116,0.65257598,3826.5,3826.4,2.0504]
[1760208569320,0.65257598,3826.5,3826.4,4.66382253]
[1760208570716,0.65257598,3826.5,3826.4,0.1324]
[1760208570882,1.11557598,3826.5,3826.4,0.002]
[1760208571086,1.11657598,3826.5,3826.4,0.002]
[1760208571282,0.65357598,3826.5,3826.4,0.002]
[1760208571496,0.60357598,3826.5,3826.4,0.002]
[1760208572207,0.60357598,3826.5,3826.4,2.61542253]
[1760208572437,0.60357598,3826.5,3826.4,4.53542253]
[1760208572623,0.60357598,3826.5,3826.4,4.56155675]
[1760208573625,0.60357598,3826.5,3826.4,5.82973405]
[1760208574808,0.60357598,3826.5,3826.4,1.922]
[1760208575011,1.06657598,3826.5,3826.4,1.922]
[1760208576590,0.60357598,3826.5,3826.4,4.53542253]
[1760208576995,0.60357598,3826.5,3826.4,1.922]
[1760208577234,0.60357598,3826.5,3826.4,0.002]
[1760208577625,0.60357598,3826.5,3826.4,0.60557598]
[1760208579025,1.06657598,3826.5,3826.4,0.60557598]
[1760208582430,0.60357598,3826.5,3826.4,0.60557598]
[1760208585543,0.60357598,3826.5,3826.4,3.21899851]
[1760208585908,0.60357598,3826.5,3826.4,0.60557598]
[1760208588938,0.60357598,3826.5,3826.4,3.21899851]
[1760208589243,0.60357598,3826.5,3826.4,3.31639851]
[1760208589910,0.60357598,3826.5,3826.4,4.61071003]
[1760208590107,0.60357598,3826.5,3826.4,1.9972875]
[1760208590430,0.60357598,3826.5,3826.4,1.8998875]
[1760208591410,1.07647598,3826.5,3826.4,0.002]
[1760208591638,0.60357598,3826.5,3826.4,0.002]
[1760208592207,0.60229596,3826.5,3826.4,2.61542253]
[1760208592741,0.60229596,3826.5,3826.4,3.31885523]
[1760208593907,0.60229596,3826.5,3826.4,5.23885523]
[1760208597048,0.60229596,3826.5,3826.4,5.84115119]
[1760208597540,0.60229596,3826.5,3826.4,5.74375119]
[1760208597741,0.60229596,3826.5,3826.4,5.84115119]
[1760208597931,0.60229596,3826.5,3826.4,7.13546271]
[1760208598330,0.60229596,3826.5,3826.4,5.84115119]
[1760208603372,0.60229596,3826.5,3826.4,7.13546271]
[1760208609964,0.60114459,3826.5,3826.4,7.13546271]
[1760208610384,0.60114459,3826.5,3826.4,5.82973405]
[1760208611392,0.60114459,3826.5,3826.4,4.53542253]
[1760208615397,0.60114459,3826.5,3826.4,0.002]
[1760208615598,1.07414459,3826.5,3826.4,0.002]
[1760208616712,0.60114459,3826.5,3826.4,0.002]
[1760208618110,0.60114459,3826.5,3826.4,2.64155675]
[1760208620018,0.60114459,3826.5,3826.4,2.61542253]
[1760208620582,0.60114459,3826.5,3826.4,0.002]
[1760208621335,0.60114459,3826.5,3826.4,2.61542253]
[1760208624886,0.60114459,3826.5,3826.4,3.47417964]
[1760208625144,0.60114459,3826.5,3826.4,4.04919001]
[1760208625348,0.60114459,3826.5,3826.4,5.96919001]
[1760208630020,0.60114459,3826.5,3826.4,7.16610153]
[1760208630220,0.60114459,3826.5,3826.4,6.43087864]
[1760208630513,0.60114459,3826.5,3826.4,3.81745611]
[1760208630744,0.60114459,3826.5,3826.4,0.002]
[1760208630950,1.05684459,3826.5,3826.4,0.002]
[1760208632221,0.60114459,3826.5,3826.4,0.002]
[1760208632660,0.60114459,3826.5,3826.4,2.61542253]
[1760208634056,0.60114459,3826.5,3826.4,4.65895675]
[1760208634254,0.60114459,3826.5,3826.4,5.51660801]
[1760208634454,0.60114459,3826.5,3826.4,6.09161838]
[1760208635339,0.60114459,3826.5,3826.4,6.72521838]
[1760208635833,0.60114459,3826.5,3826.4,9.33068394]
[1760208636267,1e-08,3826.5,3826.4,9.20028394]
[1760208636469,1e-08,3826.5,3826.4,6.98721838]
[1760208636838,1e-08,3826.5,3826.4,10.26000776]
[1760208637037,0.001,3826.9,3826.4,10.26000776]
[1760208637038,1e-08,3826.9,3826.8,3.50874936]
[1760208637370,1e-08,3826.9,3826.8,13.74670785]
[1760208637573,1e-08,3826.9,3826.8,13.94837636]
[1760208638171,1e-08,3826.9,3826.8,16.29196616]
[1760208638875,1e-08,3826.9,3826.8,13.94837636]
[1760208639250,1e-08,3826.9,3826.8,13.68637636]
[1760208639769,1e-08,3826.9,3826.8,13.94837636]
[1760208640183,1e-08,3826.9,3826.8,5.9374243]
[1760208641465,1e-08,3826.9,3826.8,7.23173582]
[1760208641965,1e-08,3826.9,3826.8,5.9374243]
[1760208643792,0.654,3827.2,3826.8,5.9374243]
[1760208644084,0.001,3827.7,3827.4,12.91529177]
[1760208644489,0.001,3827.7,3827.4,13.14309177]
[1760208644688,0.001,3827.7,3827.4,13.24784233]
[1760208644862,0.001,3827.7,3827.4,5.49889027]
[1760208651001,0.001,3827.7,3827.4,5.76089027]
[1760208651202,0.001,3827.7,3827.4,6.72769125]
[1760208651873,0.001,3827.7,3827.4,3.81469125]
[1760208652171,0.001,3827.7,3827.4,2.84789027]
[1760208654204,0.4546,3827.5,3827.4,2.74313971]
[1760208654399,0.001,3827.5,3827.4,4.66313971]
[1760208659420,0.001,3827.5,3827.4,4.66513971]
[1760208662199,0.001,3827.5,3827.4,4.7886671]
[1760208662399,0.001,3827.5,3827.4,4.86731305]
[1760208662604,0.001,3827.5,3827.4,2.15717334]
[1760208662817,0.001,3827.5,3827.4,2.0524]
[1760208663200,0.4703,3827.5,3827.4,2.0524]
[1760208663538,0.4703,3827.5,3827.4,1.922]
[1760208663706,0.4703,3827.5,3827.4,0.002]
[1760208664503,0.001,3827.5,3827.4,2.61473971]
[1760208664829,0.001,3827.5,3827.4,2.71213971]
[1760208665035,0.001,3827.5,3827.4,2.84253971]
[1760208665532,0.001,3827.5,3827.4,2.74513971]
[1760208667602,0.001,3827.5,3827.4,3.33083638]
[1760208667808,0.001,3827.5,3827.4,3.30470899]
[1760208669339,0.001,3827.5,3827.4,5.88443638]
[1760208669508,0.001,3827.5,3827.4,5.85830899]
[1760208671023,0.001,3827.5,3827.4,6.12030899]
[1760208674716,0.001,3827.5,3827.4,5.85830899]
[1760208675264,0.001,3827.5,3827.4,2.61473971]
[1760208675617,0.001,3827.5,3827.4,0.002]
[1760208676015,0.001,3827.5,3827.4,2.61473971]
[1760208676249,0.001,3827.5,3827.4,0.002]
[1760208676250,0.4703,3827.5,3827.4,0.002]
[1760208676450,0.001,3827.5,3827.4,0.002]
[1760208676751,0.001,3827.5,3827.4,2.61473971]
[1760208680638,0.001,3827.5,3827.4,3.37834751]
[1760208680842,0.001,3827.5,3827.4,2.87653971]
[1760208681043,0.001,3827.5,3827.4,3.13853971]
[1760208681353,0.001,3827.5,3827.4,2.87653971]
[1760208683044,0.001,3827.5,3827.4,2.74513971]
[1760208685679,0.001,3827.5,3827.4,2.84253971]
[1760208685858,0.001,3827.5,3827.4,2.74513971]
[1760208688549,0.001,3827.5,3827.4,0.1324]
[1760208689008,0.4703,3827.5,3827.4,0.002]
[1760208689681,0.78138733,3827.5,3827.4,0.002]
[1760208690249,0.80748964,3827.5,3827.4,0.002]
[1760208690454,3.23947376,3827.5,3827.4,0.002]
[1760208693398,5.15947376,3827.5,3827.4,0.002]
[1760208693590,5.13337145,3827.5,3827.4,0.002]
[1760208693909,4.53294452,3827.1,3827.0,0.002]
[1760208694111,12.28189658,3827.1,3827.0,0.002]
[1760208694263,12.73139658,3827.1,3827.0,0.002]
[1760208694467,14.26582149,3827.1,3827.0,0.002]
[1760208695492,13.85433221,3827.1,3827.0,0.002]
[1760208697677,2.61321765,3826.7,3826.6,0.002]
[1760208698007,11.89678274,3826.7,3826.6,0.002]
[1760208698210,12.32018043,3826.7,3826.6,0.002]
[1760208698414,13.78834218,3826.7,3826.6,0.002]
[1760208699607,6.4508794,3826.7,3826.6,0.002]
[1760208699916,13.15474218,3826.7,3826.6,0.002]
[1760208701000,6.4508794,3826.7,3826.6,0.002]
[1760208701512,2.71769109,3827.3,3826.6,0.002]
[1760208701513,0.10483347,3827.3,3826.6,0.002]
[1760208701816,0.1304,3826.9,3826.6,0.002]
[1760208702133,0.5799,3826.9,3826.6,0.002]
[1760208702791,0.1304,3826.9,3826.6,0.002]
[1760208703497,0.5781,3826.9,3826.6,0.002]
[1760208703825,3.40612481,3826.8,3826.6,0.002]
[1760208704050,0.47380231,3826.8,3826.6,0.002]
[1760208704248,0.4477,3826.7,3826.6,0.002]
[1760208704441,3.06091765,3826.7,3826.6,0.002]
[1760208714352,4.98091765,3826.7,3826.6,0.002]
[1760208716423,0.4477,3826.7,3826.6,0.002]
[1760208716664,3.06091765,3826.7,3826.6,0.002]
[1760208717170,0.02610231,3826.7,3826.6,0.002]
[1760208717378,0.001,3827.1,3826.6,0.002]
[1760208717535,0.001,3827.1,3827.0,0.1304]
[1760208717735,0.001,3827.1,3827.0,3.0275007]
[1760208719981,0.001,3827.1,3827.0,0.4144879]
[1760208720184,0.001,3827.1,3827.0,0.1304]
[1760208720386,0.4554,3827.1,3826.6,0.002]
[1760208720680,0.61090231,3827.0,3826.6,0.002]
[1760208721081,0.15650231,3827.0,3826.6,0.002]
[1760208721688,0.4544,3826.9,3826.6,0.002]
[1760208721847,0.15650231,3826.8,3826.6,0.002]
[1760208722050,0.61090231,3826.8,3826.6,0.002]
[1760208722247,0.4544,3826.7,3826.6,0.002]
[1760208722496,0.15650231,3826.8,3826.6,0.002]
[1760208722818,0.1304,3826.8,3826.6,0.002]
[1760208723691,0.5848,3826.8,3826.6,0.002]
[1760208724798,0.1304,3826.8,3826.6,0.002]
[1760208724965,0.001,3827.1,3826.6,2.87957902]
[1760208725153,0.1314,3827.1,3826.6,2.87957902]
[1760208726280,0.001,3827.1,3826.8,2.61309277]
[1760208726481,0.001,3827.1,3826.9,0.02613081]
[1760208727286,0.001,3827.1,3827.0,2.6130128]
[1760208727478,0.001,3827.1,3827.0,3.14536336]
[1760208732567,0.001,3827.1,3827.0,0.53235056]
[1760208732772,0.4554,3827.1,3826.6,2.61526124]
[1760208733666,0.4544,3827.0,3826.6,0.002]
[1760208733896,0.48050231,3827.0,3826.6,0.002]
[1760208734062,0.4544,3826.9,3826.6,0.002]
[1760208734903,0.654,3826.8,3826.6,0.002]
[1760208735507,1.1084,3826.8,3826.6,0.002]
[1760208736070,0.4544,3826.7,3826.6,0.002]
[1760208737071,0.48050231,3826.7,3826.6,0.002]
[1760208740502,0.4544,3826.7,3826.6,0.002]
[1760208744233,0.68010231,3826.8,3826.6,0.002]
[1760208744421,0.654,3826.8,3826.7,2.61321765]
[1760208744729,0.654,3826.8,3826.6,2.61527522]
[1760208745302,0.654,3826.8,3826.6,0.002]
[1760208745496,1.1084,3826.8,3826.6,0.002]
[1760208746023,0.48050231,3826.7,3826.6,0.002]
[1760208746230,3.59898684,3826.7,3826.6,0.002]
[1760208748829,5.51898684,3826.7,3826.6,0.002]
[1760208749127,5.49288453,3826.7,3826.6,0.002]